Cogmind - Beta 15 @@@ ROGUE MODE // 2025.06.12 @ 22:00:29 Player: 7604 Result: Destroyed by G-67 Veteran with Plasma Rifle Performance ------------- Evolutions (4) 2000 Regions Visited (5) 1000 Robots Destroyed (40) 200 Value Destroyed (1040) 1040 Prototype IDs (19) 380 Alien Tech Used (0) 0 Bonus (2719) 2719 TOTAL SCORE: 7339 Bonus ------- Delivered SUBCON Basin 2000 Registered with UFD 300 Met Optimus in HQ 500 Friendly Fire -81 Cogmind --------- Core Integrity 0/850 Matter 112/300 Energy 99/100 System Corruption 6% Temperature Cool (21) Movement Core (50) Location -6/Factory Parts ------- > --- POWER (1) -------- (None) > --- PROPULSION (5) --- (None) > --- UTILITY (7) ------ Surveybot 17 Chip Improved Propulsion Shielding System Shield > --- WEAPON (2) ------- (None) > --- INVENTORY (5) ---- A0-MCA's Component Scanner Tech Extrapolator Mapping Drone Bay (3/3) Rainbow Chip Heavy Rocket Launcher Peak State ------------ > --- POWER ------------ Light Nuclear Core > --- PROPULSION ------- Flight Unit Cesium-ion Thruster Cesium-ion Thruster Cesium-ion Thruster > --- UTILITY ---------- Medium Storage Unit Deep Structural Scanner Surveybot 17 Chip Seismic Detector System Shield Authchip [Propulsion] Authchip [Propulsion] > --- WEAPON ----------- Improved Datajack > --- INVENTORY -------- A0-MCA's Component Scanner Tech Extrapolator Mapping Drone Bay Rainbow Chip Heavy Rocket Launcher CPS Tube Heavy Flail DRS Beacon [Rating: 45] Favorites ----------- Power Subdweller Power Source Engine Subdweller Power Source Power Core Light Nuclear Core Propulsion Light Treads Treads Light Treads Leg Aluminum Leg Flight Unit Cesium-ion Thruster Utility Seismic Detector Device Seismic Detector Storage High-capacity Storage Unit Processor Surveybot 17 Chip Hackware Authchip [Propulsion] Protection Improved Propulsion Shielding Weapon Advanced Beam Cannon Energy Gun Subdweller Laser Energy Cannon Advanced Beam Cannon Ballistic Gun Light Assault Rifle Ballistic Cannon Mini Assault Cannon Launcher Rocket Launcher Special Weapon Mining Laser Impact Weapon Heavy Flail Special Melee Weapon Improved Datajack Build | -11 -10 -10 -8 -8 -6 ------- Run | Yrd Mat Sub Rec Scr Fac Slots Evolved 8 | . . . . . 8 Power . | . . . . . . Propulsion 3 | . . . . . 3 Utility 5 | . . . . . 5 Weapon . | . . . . . . Parts Attached 42 | 1 11 13 1 1 15 Power 5 | . . 4 . 1 . Engine 4 | . . 4 . . . Core 1 | . . . . 1 . Reactor . | . . . . . . Propulsion 9 | . 4 1 . . 4 Treads 4 | . 3 1 . . . Leg 1 | . 1 . . . . Wheel . | . . . . . . Hover . | . . . . . . Flight 4 | . . . . . 4 Utility 15 | 1 2 4 . . 8 Device 6 | 1 . 4 . . 1 Storage 3 | . 2 . . . 1 Processor 1 | . . . . . 1 Hackware 4 | . . . . . 4 Protection 1 | . . . . . 1 Artifact . | . . . . . . Weapon 13 | . 5 4 1 . 3 Energy Gun 2 | . 1 . 1 . . Energy Cannon 4 | . 1 3 . . . Ballistic Gun 2 | . 2 . . . . Ballistic Cannon 1 | . . . . . 1 Launcher 1 | . . 1 . . . Special Weapon 1 | . 1 . . . . Impact Weapon 1 | . . . . . 1 Slashing Weapon . | . . . . . . Piercing Weapon . | . . . . . . Special Melee Weapon 1 | . . . . . 1 Unidentified Prototypes 2 | . 1 . . . 1 Corrupted Parts 2 | . . . . . 2 System Corruption 5 | . . . . . 5 Parts Lost 17 | . 2 4 . . 11 Power 2 | . . 1 . . 1 Propulsion 6 | . 1 1 . . 4 Utility 6 | . . 1 . . 5 Weapon 3 | . 1 1 . . 1 Highest Loss Streak 10 | . 1 2 . . 10 To Critical Strikes 1 | . . 1 . . . Average Backups 13 | 6 11 17 5 12 9 Power . | 1 1 . 1 . . Propulsion 1 | 3 . 2 . 2 . Utility 4 | . 3 4 2 5 5 Weapon 5 | 1 5 10 1 2 1 Tool/Special . | . . . . . . Unused Backups 37 | 8 6 13 1 2 7 Power 6 | 1 1 2 . 2 . Propulsion 10 | 4 3 3 . . . Utility 6 | 1 1 . . . 4 Weapon 13 | 2 1 8 1 . 1 Tool/Special 2 | . . . . . 2 Average Slot Usage (%) 97 | . 99 99 100 97 65 Engine 11 | . 14 13 14 8 . Core 1 | . . . . 4 5 Treads 24 | . 17 27 28 28 1 Leg 2 | . 10 . . . . Device 13 | . 14 14 14 14 9 Storage 13 | . 14 14 14 13 5 Energy Gun 6 | . 7 . 10 13 . Energy Cannon 16 | . 3 27 17 13 . Ballistic Gun 3 | . 17 . . . . Peak Build Rating 45 | 7 12 32 32 20 45 Average Rating 16 | 6 8 16 30 15 34 On Entrance 15 | 6 7 11 32 14 20 Naked Turns . | . . . . . . Heaviest Build 58 | 12 49 58 54 54 54 Greatest Support 40 | 20 40 40 40 40 40 Greatest Overweight (x) 2 | . 2 1 1 1 2 Average Overweight (x) . | . . 1 1 . . Largest Inventory Capacity 20 | 8 20 20 20 20 20 Average Capacity 18 | 8 16 20 20 19 10 Most Carried 20 | 8 20 20 20 20 20 Average Carried 15 | 6 11 19 19 12 9 Final Capacity 20 | 8 20 20 20 20 5 Final Carried 20 | 7 18 20 6 20 5 Class Distribution -------------------- 73% | Mutant 25% | Scavenger-Mutant Dominant Class ---------------- Mutant | -10/Materials Mutant | -10/Subcaves Scavenger-Mutant | -8/Recycling Scavenger-Mutant | -8/Scraptown Mutant | -6/Factory Resources | -11 -10 -10 -8 -8 -6 ----------- Run | Yrd Mat Sub Rec Scr Fac Matter Collected 854 | 250 295 232 . 52 25 Remotely . | . . . . . . Salvage Created 1448 | 148 690 599 . . 11 Parts 82 | 11 38 33 . . . Haulers Intercepted 2 | . 2 . . . . Recyclers Shooed . | . . . . . . Parts Field Recycled . | . . . . . . Retrieved Matter . | . . . . . . Parts Self-Destructed 9 | . . 9 . . . Prevented . | . . . . . . Kills | -11 -10 -10 -8 -8 -6 ------- Run | Yrd Mat Sub Rec Scr Fac Combat Hostiles Destroyed 27 | . 15 12 . . . Guns 14 | . 14 . . . . Cannons 12 | . . 12 . . . Classes Destroyed 11 | 2 4 4 . . 1 Builder 1 | . . . . . 1 Tunneler 4 | 4 . . . . . Hauler 2 | . 2 . . . . Recycler 1 | 1 . . . . . Turret 2 | . . 2 . . . Watcher 3 | . 3 . . . . Swarmer 5 | . 3 2 . . . Grunt 12 | . 12 . . . . Sentry 1 | . . 1 . . . Artisan 1 | . . 1 . . . Subdweller 9 | . . 9 . . . Best Kill Streak 5 | 5 5 2 . . 1 Combat Bots Only 5 | . 5 2 . . . Max Kills in Single Turn 2 | 1 2 1 . . 1 Gunslinging 1 | . 1 . . . . Exploded . | . . . . . . Melee . | . . . . . . Uniques/NPCs Destroyed . | . . . . . . Combat | -11 -10 -10 -8 -8 -6 -------- Run | Yrd Mat Sub Rec Scr Fac Hostile Shots Fired 273 | . 85 58 . . 130 Missed 92 | . 25 20 . . 47 Hits 181 | . 60 38 . . 83 Projectile 181 | . 60 38 . . 83 Critical Strikes 4 | . . 2 . . 2 Damage Taken 2558 | . 724 528 . . 1306 Core 1056 | . 112 86 . . 858 Absorbed by Shields . | . . . . . . Redirected to Shielding 91 | . . . . . 91 Regen/Repaired (Parts) 47 | . 47 . . . . Core Remaining (%) 60 | 100 . . . 20 . Volleys Fired 150 | 10 81 59 . . . Largest 2 | 2 2 2 . . . Hottest 148 | 40 100 148 . . . Shots Fired 293 | 20 158 115 . . . Gun 170 | 20 150 . . . . Cannon 119 | . 6 113 . . . Launcher 2 | . . 2 . . . Special 2 | . 2 . . . . Kinetic 135 | 20 115 . . . . Thermal 156 | . 43 113 . . . Explosive 2 | . . 2 . . . Electromagnetic . | . . . . . . Robot Hit Streak 12 | 8 8 12 . . . Robot Miss Streak 3 | 1 3 2 . . . Penetration Max . | . . . . . . Secondary Targets 2 | . 2 . . . . Max Gunslinging Chain 1 | . 1 . . . . Shots Hit Robots 183 | 14 99 64 . . 6 Core Hits 71 | 7 33 31 . . . Critical Kills 1 | . . 1 . . . Critical Parts Destroyed . | . . . . . . Critical Strikes 4 | . 3 1 . . . Burn 3 | . 3 . . . . Meltdown 1 | . . 1 . . . Melee Attacks 15 | . . . . . 15 Impact 13 | . . . . . 13 Slashing . | . . . . . . Piercing . | . . . . . . Sneak Attacks 3 | . . . . . 3 Combat Hostiles . | . . . . . . Follow-up Attacks . | . . . . . . Damage Inflicted 2941 | 137 1096 1428 . . 280 Guns 1149 | 137 1012 . . . . Cannons 1439 | . 84 1355 . . . Explosions 73 | . . 73 . . . Melee 280 | . . . . . 280 Ramming . | . . . . . . Kinetic 765 | 137 628 . . . . Thermal 1823 | . 468 1355 . . . Explosive 73 | . . 73 . . . Electromagnetic . | . . . . . . Impact 280 | . . . . . 280 Slashing . | . . . . . . Piercing . | . . . . . . Highest Corruption 6 | . . . . . 6 Average Corruption 5 | . . . . . 5 Corruption Purged . | . . . . . . Corruption Blocked . | . . . . . . Effects 5 | . . . . . 5 Message Errors 2 | . . . . . 2 Heat Flow Errors 1 | . . . . . 1 Parts Rejected 1 | . . . . . 1 Data Loss (major) 1 | . . . . . 1 Overload Shots . | . . . . . . Overflow Damage 96 | . 12 12 . . 72 Projectiles 24 | . 12 12 . . . Explosions . | . . . . . . Melee 72 | . . . . . 72 Knockbacks 2 | . . . . . 2 Impact 2 | . . . . . 2 Kinetic . | . . . . . . Secondary . | . . . . . . Self-Inflicted Damage . | . . . . . . Shots . | . . . . . . Rammed 1 | . 1 . . . . Targets Rammed 1 | . 1 . . . . Kicked . | . . . . . . Crushed . | . . . . . . Highest Temperature 328 | . 208 328 . . 262 Average Temperature 60 | . 62 47 . . 127 Received Heat Transfer 1033 | . 372 448 . . 213 Siege Activations . | . . . . . . Martial Activations . | . . . . . . Shielding Activations . | . . . . . . Robots Disrupted . | . . . . . . Combat Hostiles . | . . . . . . Robots Corrupted 1 | . . . . . 1 Combat Hostiles . | . . . . . . Parts Fried . | . . . . . . Impact Corruptions 4 | . . . . . 4 Robots Melted 2 | . 1 1 . . . Combat Hostiles 1 | . 1 . . . . Parts Melted 7 | . 1 6 . . . Heat Transferred 3885 | . 1480 2405 . . . Parts Sabotaged . | . . . . . . Parts Stolen . | . . . . . . Parts Stripped . | . . . . . . Power Chain Reactions . | . . . . . . Alert | -11 -10 -10 -8 -8 -6 ------- Run | Yrd Mat Sub Rec Scr Fac Maximum Alert Level 1 | . 1 . . . . Low Security (%) 98 | 100 98 . 100 . 100 Level 1 1 | . 1 . . . . Level 2 . | . . . . . . Level 3 . | . . . . . . Level 4 . | . . . . . . Level 5 . | . . . . . . High Security . | . . . . . . Max Security . | . . . . . . Peak Influence 206 | 10 206 . 102 . 57 Initial 72 | . . . 72 . . Average 66 | 2 92 . 23 . 16 Influence Increases 1119 | 25 561 250 103 . 180 Destroy 0b10 Robot/C 400 | . 300 100 . . . Destroy 0b10 Robot/NC 55 | 25 25 . . . 5 Destroy Leader 70 | . 70 . . . . Successful Hack 74 | . 43 . 13 . 18 Select Force Hacks 150 | . 60 . 90 . . Destroy Structure 10 | . 3 . . . 7 Partial Spotted 30 | . . . . . 30 Lose Combat Pursuer 330 | . 60 150 . . 120 Influence Decreases 1114 | 25 477 184 253 . 175 Entered New Map 119 | . . 41 78 . . Time Decay 900 | 25 457 143 175 . 100 Lost Part 95 | . 20 . . . 75 Squads Dispatched 8 | . 4 . . . 4 Investigation 6 | . 3 . . . 3 Extermination 1 | . . . . . 1 Reinforcement 1 | . 1 . . . . Assault . | . . . . . . Garrison . | . . . . . . Intercept . | . . . . . . Searches Triggered . | . . . . . . Construction Impeded . | . . . . . . Haulers Reinforced . | . . . . . . Active Scanning Responses . | . . . . . . Cargo Convoy Interrupts . | . . . . . . Stealth | -11 -10 -10 -8 -8 -6 --------- Run | Yrd Mat Sub Rec Scr Fac Distress Signals 5 | . 4 . . . 1 Communications Jammed . | . . . . . . Distress Signals . | . . . . . . Times Spotted 65 | . 28 17 . . 20 Peak Tracking Total 9 | . 6 4 . . 9 Tactical Retreats 11 | . 3 3 . . 5 Traps | -11 -10 -10 -8 -8 -6 ------- Run | Yrd Mat Sub Rec Scr Fac Traps Triggered 1 | . 1 . . . . Indirectly . | . . . . . . Trap Hack Attempts . | . . . . . . Triggered . | . . . . . . Disarmed . | . . . . . . Reprogrammed . | . . . . . . Reused . | . . . . . . Traps Extracted . | . . . . . . Installed . | . . . . . . Triggered . | . . . . . . Machines | -11 -10 -10 -8 -8 -6 ---------- Run | Yrd Mat Sub Rec Scr Fac Machines Disabled 4 | . . 4 . . . Max in Single Turn 3 | . . 3 . . . Machines Repaired . | . . . . . . Machines Dismantled . | . . . . . . Machines Sabotaged . | . . . . . . Overloaded Fab Kills . | . . . . . . Hacking | -11 -10 -10 -8 -8 -6 --------- Run | Yrd Mat Sub Rec Scr Fac Machines Accessed 27 | . 9 4 5 4 5 Terminals 11 | . 6 . 2 . 3 Fabricators . | . . . . . . Repair Stations 2 | . 1 . . . 1 Recycling Units 6 | . 2 . 3 . 1 Scanalyzers . | . . . . . . Garrison Access . | . . . . . . Total Hacks 90 | . 30 8 16 23 13 Successful 63 | . 17 8 10 23 5 Failed 27 | . 13 . 6 . 8 Catastrophic 4 | . 1 . 1 . 2 Database Lockouts . | . . . . . . Manual 44 | . 25 . 12 . 7 Terminals 41 | . 23 . 9 . 9 Fabricators . | . . . . . . Repair Stations 5 | . 2 . . . 3 Recycling Units 13 | . 5 . 7 . 1 Scanalyzers . | . . . . . . Garrison Access . | . . . . . . Terminal Hacks 38 | . 4 8 2 23 1 Record 27 | . . 5 . 22 . Part Schematic 2 | . 1 . 1 . . Robot Analysis 4 | . 3 . 1 . . Open Door 1 | . . 1 . . . Terminal Index 1 | . . . . . 1 Proto ID Catalog 2 | . . 1 . 1 . Release Object 1 | . . 1 . . . Fabricator Hacks . | . . . . . . Repair Station Hacks 3 | . 2 . . . 1 Scan Component 2 | . 1 . . . 1 Repair 1 | . 1 . . . . Recycling Unit Hacks 5 | . 1 . 4 . . Retrieve Components 5 | . 1 . 4 . . Scanalyzer . | . . . . . . Garrison Access Hacks . | . . . . . . Unauthorized Hacks 17 | . 10 . 4 . 3 Terminals 11 | . 8 . 1 . 2 Assimilate 1 | . . . . . 1 Botnet 4 | . 2 . 1 . 1 Operators 1 | . 1 . . . . Skim 5 | . 5 . . . . Fabricators . | . . . . . . Repair Stations . | . . . . . . Recycling Units 6 | . 2 . 3 . 1 Tunnel 5 | . 2 . 3 . . Scrapoids 1 | . . . . . 1 Scanalyzers . | . . . . . . Garrison Access . | . . . . . . Data Cores Recovered . | . . . . . . Used . | . . . . . . Hacking Detections 13 | . 7 . 2 . 4 Full Trace Events 2 | . . . . . 2 Feedback Events . | . . . . . . Feedback Blocked . | . . . . . . Robot Schematics Acquired . | . . . . . . Robots Built . | . . . . . . Authchips . | . . . . . . Time . | . . . . . . Total Robot Build Rating . | . . . . . . Part Schematics Acquired 2 | . 1 . 1 . . Parts Built . | . . . . . . Authchips . | . . . . . . Time . | . . . . . . Total Part Build Rating . | . . . . . . Parts Repaired 1 | . 1 . . . . Time 26 | . 26 . . . . Parts Recycled . | . . . . . . Recycled Matter . | . . . . . . Retrieved Matter . | . . . . . . Retrieved Components 13 | . 9 . 4 . . Parts Scanalyzed . | . . . . . . Part Schematics Acquired . | . . . . . . Parts Damaged . | . . . . . . Bothacking | -11 -10 -10 -8 -8 -6 ------------ Run | Yrd Mat Sub Rec Scr Fac Used RIF Installer . | . . . . . . Robots Hacked 2 | . . . . . 2 Non-combat 2 | . . . . . 2 Combat . | . . . . . . Robot Hacks Applied 2 | . . . . . 2 no_distress 1 | . . . . . 1 find_recycling 1 | . . . . . 1 Relay Couplers Released . | . . . . . . Fabnet Peak Effective % . | . . . . . . Robots Rewired . | . . . . . . Allies Hacked . | . . . . . . Hacks Repelled . | . . . . . . Allies | -11 -10 -10 -8 -8 -6 -------- Run | Yrd Mat Sub Rec Scr Fac Total Allies . | . . . . . . Largest Group . | . . . . . . Highest-Rated Group . | . . . . . . Highest-Rated Ally . | . . . . . . Total Orders . | . . . . . . Ally Attacks . | . . . . . . Total Damage . | . . . . . . Kills . | . . . . . . Allies Corrupted . | . . . . . . Allies Melted . | . . . . . . Intel | -11 -10 -10 -8 -8 -6 ------- Run | Yrd Mat Sub Rec Scr Fac Active Infowar (turns) 9017 | 23 1879 2987 558 3257 313 Terrain 174 | . . 174 . . . Structural 81 | . . . . . 81 Seismic 8843 | 23 1879 2813 558 3257 313 Robot Analysis Total 4 | . 3 . 1 . . Derelict Logs Recovered 2 | . . . . 2 . Drone Launches . | . . . . . . Drone Recoveries . | . . . . . . Exploration | -11 -10 -10 -8 -8 -6 ------------- Run | Yrd Mat Sub Rec Scr Fac Turns Passed 9371 | 119 1879 3212 558 3257 346 Spaces Moved 4033 | 57 698 1155 228 1414 481 Core 185 | . . . . 124 61 Treads 3230 | . 552 1155 228 1290 5 Legs 203 | 57 146 . . . . Wheels . | . . . . . . Hover . | . . . . . . Flight 415 | . . . . . 415 Fastest Speed 27 | 120 120 240 240 50 27 Average Speed 205 | 120 216 240 240 223 44 Slowest Speed 320 | 120 320 240 240 240 240 Overloaded Moves . | . . . . . . Propulsion Burnouts . | . . . . . . Robots Hopped 1 | . . . . . 1 Potential Cave-ins . | . . . . . . Cave-ins Triggered . | . . . . . . Exploration Rate (%) 51 | 5 88 65 49 87 16 Regions Visited 5 Branch Regions 3 Pre-discovered Areas 12 | . 2 1 3 6 . Known Exits Taken 3 | . . 1 1 1 . Unknown Exits Taken 2 | 1 1 . . . . Scrap Searched 7 | . . 2 . 5 . Spaces Dug 17 | . 2 8 . . 7 Terrain Destroyed 37 | . 2 28 . . 7 Melee 7 | . . . . . 7 Projectile 13 | . 2 11 . . . AOE 17 | . . 17 . . . Terrain Rammed . | . . . . . . Walls Destroyed . | . . . . . . Machines Disabled . | . . . . . . Actions | -11 -10 -10 -8 -8 -6 --------- Run | Yrd Mat Sub Rec Scr Fac Total 4844 | 90 916 1484 241 1519 594 Wait 441 | 18 100 210 7 53 53 Move 4026 | 56 697 1154 227 1413 479 Hop 1 | . . . . . 1 Pick Up 71 | 3 16 14 3 34 1 Fast Attach 15 | 1 4 1 . 4 5 Attach 19 | . . 4 . 2 13 Detach 10 | . 1 . . 2 7 Swap 34 | . 8 18 1 . 7 Drop 61 | 2 8 24 3 11 13 Fire 150 | 10 81 59 . . . Melee 15 | . . . . . 15 Ram . | . . . . . . Kick . | . . . . . . Crush 1 | . 1 . . . . Escape Stasis . | . . . . . . Rewire . | . . . . . . Trap . | . . . . . . Miscellaneous . | . . . . . . Route ------- -11/Scrapyard -10/Materials (discovered 5 exits: [*Mat x3] / [*Min] / *Sub) -10/Subcaves (discovered 3 exits: *Mat / *Rec / *Scr) -8/Recycling -8/Scraptown (discovered 2 exits: *Fac x2) -6/Factory (discovered 3 exits: *Fac x2 / *Low) History --------- Turn | Location | Event 1 | -11/Scrapyard | Discovered new exit (range 2) 120 | -11/Scrapyard | Entered Materials 210 | -10/Materials | Discovered new exit (range 11) 319 | -10/Materials | Build established: Mutant 384 | -10/Materials | Discovered new exit (range 6) 720 | -10/Materials | Discovered new exit (range 10) 782 | -10/Materials | Repaired Lgt. Treads 1038 | -10/Materials | Learned location of 1 exit from Recycling 1093 | -10/Materials | Discovered new exit (range 16) 1130 | -10/Materials | Learned Storage emergency access door positions 1160 | -10/Materials | Learned location of 2 exits from Subcaves 1178 | -10/Materials | Learned location of 1 exit from Storage 1186 | -10/Materials | Loaded intel: 8 trap records 1204 | -10/Materials | Learned 2 Storage zone layouts 1512 | -10/Materials | Discovered new exit (range 16) 1999 | -10/Materials | Entered Subcaves 2000 | -10/Subcaves | Approached by a straggling Scientist 2000 | -10/Subcaves | Identified exit to Recycling 2000 | -10/Subcaves | Identified exit to Materials 2334 | -10/Subcaves | Visited Clippyterm 2341 | -10/Subcaves | Learned location of Deep Caves (-7) 2341 | -10/Subcaves | Learned Factory trap positions 3848 | -10/Subcaves | Visited 4L-MR0's lab 3872 | -10/Subcaves | Found Rainbow Chip 4466 | -10/Subcaves | Ambushed by Subdwellers from Twisted Machinery 4485 | -10/Subcaves | Core integrity fell below 50% 4767 | -10/Subcaves | Found SUBCON Basin 5211 | -10/Subcaves | Entered Recycling 5212 | -8/Recycling | Identified exit to Scraptown 5636 | -8/Recycling | Build established: Scavenger-Mutant 5681 | -8/Recycling | Scanned before Scraplab entrance 5715 | -8/Recycling | Entered Scraplab 5769 | -8/Recycling | Entered Scraptown 5875 | -8/Scraptown | Heard Great Nut preacher, LISTEN AND RECITE! 6252 | -8/Scraptown | Scanned Subdweller tech in exchange for log data 6290 | -8/Scraptown | Discovered new exit (range 11) 6418 | -8/Scraptown | Visited Junk Repository 6482 | -8/Scraptown | Visited Cyclists 6502 | -8/Scraptown | Visited Cave Peace 6518 | -8/Scraptown | Visited Shadow of the Wyrm 6586 | -8/Scraptown | Visited Comm Corps 6670 | -8/Scraptown | Visited IN-MT5's Study 6706 | -8/Scraptown | Visited Symbiants 6749 | -8/Scraptown | Visited UFD Registry 6749 | -8/Scraptown | Registered with UFD as "Flashtalker" 7220 | -8/Scraptown | Visited A0-MCA Data Center 7261 | -8/Scraptown | Visited LU-1G1's Boring Crew 7299 | -8/Scraptown | Visited Science Guys 7371 | -8/Scraptown | Visited Junk Cannon Lab 7407 | -8/Scraptown | Visited Scrap Suit Storage 7469 | -8/Scraptown | Visited Derelict Rescue Squad 7484 | -8/Scraptown | Found DRS Beacon 7518 | -8/Scraptown | Visited Cartography Club 7562 | -8/Scraptown | Visited Chapter 10 7611 | -8/Scraptown | Visited Abandonware Association 7639 | -8/Scraptown | Learned abandonware demo "REPAIR.EXE" 7697 | -8/Scraptown | Visited DA-N13 Charitable Foundation 7720 | -8/Scraptown | Found DCF Scrap (28 items) 8047 | -8/Scraptown | Build established: Mutant 8135 | -8/Scraptown | Found Surveybot 17 Chip 8168 | -8/Scraptown | Learned location of Storage (-8) 8168 | -8/Scraptown | Learned location of Lower Caves (-6) 8168 | -8/Scraptown | Learned location of Zion (-7) 8168 | -8/Scraptown | Learned location of Armory (-3) 8168 | -8/Scraptown | Learned 12 Materials zone layouts 8168 | -8/Scraptown | Learned 8 Research zone layouts 8168 | -8/Scraptown | Learned 4 Storage zone layouts 8168 | -8/Scraptown | Learned 20 Lower Caves zone layouts 8168 | -8/Scraptown | Learned 24 Upper Caves zone layouts 8168 | -8/Scraptown | Learned 8 Proximity Caves zone layouts 8168 | -8/Scraptown | Learned location of 2 exits from Research 8168 | -8/Scraptown | Learned location of 2 exits from Upper Caves 8168 | -8/Scraptown | Identified exit to Factory 8173 | -8/Scraptown | Found Deep Structural Scanner 8406 | -8/Scraptown | Given a C+ rating by A0-MCA 8411 | -8/Scraptown | Found A0-MCA's Component Scanner 8898 | -8/Scraptown | Met Optimus 8898 | -8/Scraptown | Accepted into 0bPrime 9026 | -8/Scraptown | Entered Factory 9026 | -6/Factory | Evolved 8 slots: Propulsion x3, Utility x5 9027 | -6/Factory | Identified exit to Factory 9027 | -6/Factory | Identified exit to Lower Caves 9028 | -6/Factory | Loaded intel: 98 trap records 9198 | -6/Factory | Discovered exit to Factory (range 4) 9360 | -6/Factory | Core integrity fell below 50% 9369 | -6/Factory | Core integrity fell below 20% 9371 | -6/Factory | Lost 10 parts (1p4n4u1w) 9372 | -6/Factory | Destroyed by G-67 Veteran with Plasma Rifle Last Messages --------------- 09339_ Slug penetrates Wall. 09339_ Seismic Detector destroyed. 09339_ Acquired 14 matter. 09340_ R-10 Processor collects Terrain Scan Processor. 09340_ Broken Cesium-ion Thruster destroyed. 09348_ Connecting with Recycling Unit... >>Force(Scrapoids) UFD!MEMBER UFD!ALLOCATE<22-3=19> UFD!ETA<29> UFD!SANITIZING UFD!... 09348_ ALERT: Suspicious activity at Recycling Unit F004. Dispatching Investigation squad. 09351_ Slug penetrates Wall. 09358_ Wall collapses. 09360_ Slug penetrates G-67 Veteran. 09360_ Penetrated by Slug. 09370_ Slug penetrates Fusion Modulator. 09370_ Penetrated by Slug. Map ----- +----------------------------------------------------+ | ?????????????????????????????????????????????????? | | ?????????????????^^^^^???????????????????????????? | | ?????????????????????????????????????????????????? | | ?????????????????????????????????????????????????? | | ?????????????????????????????????????????????????? | | ?????????????????????????????????????????????????? | | ?????????????????????????????????????????????????? | | ?????????????????????????????????????????????????? | | ????????????#+#??????????????????????????????????? | | ?????????? ??????????????????????????????????? | | ?????????# ??????????????????????????????????? | | ?????????# ??????????????????????????????????? | | ?????????# ??????????????????????????????????? | | ?????????# ??????????????????????????????????? | | ?????????# ??????????????????????????????????? | | ?????????# #?????????????????????????????????? | | ?????????# #?????????????????????????????????? | | ?????????+ #?????????##???##?????????????????? | | ?????????# #?????????# ?? #?????????????????? | | ?????????# ########### """ #?????????????????? | | ?????????# # # """ #?????????????????? | | ??#?###??# # "" # """ #?????????????????? | | ??# #T ### # Y" # #?????????????????? | | ??# # p "" # ***#?????????????????? | | ??# /h""" gg #[ ***#?????????????##### | | ??+ # """ g h@w ***#???????????? ? | | ??# # """ ! # #?????????? ?? | | ??# # # * #?## ??? | | ??# ########### u #### ????? | | ??# #?????????# & wR ????? | | ??# ############"#############/#######? | | ??# * ###### #? | | ??# |= / #? | | ###### """ """??? | | ### ###+##########+#?#### """ """??? | | ??# # ???????? ### """ """ #? | | ??# # """ ???????!!!### ## | | ??# + "T ???????!!### """ """ ## | | ??+ # """ ?????? ### """ """ ## | | ??# # ????? ### """ """ ## | | ??# # """"""??? ## ## | | ??? ???? ### ## | | ??? ####+##????#?############### ## | | ???? ??????????????#############"############## | | ?????? ???????????????############################ | | ??????????????????????#### ################ | | ??????????????????????####! ################ | | ??????????????????????#### ################ | | ??????????????????????#### / | | ??????????????????????#### ###############/ | +----------------------------------------------------+ Best States ------------- Heat Dissipation 37 Energy Generation 14 Energy Capacity 265 Matter Stores 300 Matter Capacity 300 Sight Range 16 Terrain Scan Range 16 Terrain Scan Density 1210 Propulsion Shielding 66 Evasion (%) 64 Recoil Reduction 2 Defensive Hacking 10 Authchip Count 2 Item Schematics ----------------- Huge Storage Unit | -10/Materials | Hacked Hacking Suite | -8/Recycling | Hacked Robot Schematics ------------------ None Fabricated ------------ Nothing Repaired ---------- Lgt. Treads | 66% | -10/Materials Alien Tech Used ----------------- None Achievements -------------- None Challenges ------------ None Game ------ Seed TerrabombAmuletPick Manual? 0 Play Time 00:45:04 Cumulative 442.6 hours Start 2025.06.12 @ 21:07:34 End 2025.06.12 @ 22:00:29 Sessions 1 Manual Loads 0 Difficulty Rogue Special Mode None Game No. 224 Rogue 161 Adventurer 63 Explorer 0 Win Type - Total 9 Types 8/0/0/1/0/0/0/0/0/0 Lore% 87 Gallery% 80 Achievement% 66 Wizard Run 0 Options --------- Layout 0 ASCII 0 Keyboard 1 Movement Numpad Keybinds 0 Fullscreen 1 Font 18/Terminus Map View 76x50 Zoom Use 2% Tactical HUD 1 Map Filters NONE Filters NONE Steam 1 RUN: f2918532-ebbf-4597-9f1f-cdf4156154ea